{"text_format":"1","workbook":"xlsx","n_sheets":6,"sheets":["Info","Verdichtung und Vorschub","Bestimmung TS-Gehalt","Berechnung","Lists","Text"],"not_rendered":{"charts":0,"images":2,"macros":0,"external_links":0,"defined_names":26,"comments":0,"pivot_tables":0},"unopened":[],"bounds":{"document_bytes":16777216,"sheet_cells":100000,"rows_first":2000,"rows_last":500,"rows_between":2000,"halvings":0,"cell_chars":16384,"cell_head_chars":4096},"cells_cut":0,"cells_raw":0,"read":"whole","date_system":"1900"}

{"sheet":"Info","index":0,"n_rows":62,"n_cols":4,"rows_kept":62,"cut":false,"hidden":false,"merged":[]}
[]
[]
[]
[]
[null,{"$f":"Text!A187","v":"Erläuterungen SiloDim"}]
[null,{"$f":"Berechnung!K3","v":"Version 2.01"}]
[null,{"$f":"Berechnung!J3","v":0}]
[null,{"$f":"Text!A188","v":"Basis dieses Berechnungstools ist das Merkblatt «Dimensionierung von Gärfuttersilos», Version März 2024"}]
[null,{"$f":"Text!A186","v":"https://url.agridea.ch/SiloDim"}]
[null,{"$f":"Text!A185","v":"Links sind im Tool als Text eingefügt, um einen reibungslosen Download zu gewährleisten und Einschränkungen durch "}]
[null,{"$f":"Text!A184","v":"zusätzliche Sicherheitsabfragen zu vermeiden. Kopieren Sie den Link in Ihren Browser, um zum Merkblatt zu gelangen."}]
[]
[null,{"$f":"Text!A189","v":"Die Zellen im Blatt «Berechnung» sind mit unterschiedlichen Farben hinterlegt:"}]
[null,{"$f":"Text!A190","v":"Weiss"},"=",{"$f":"Text!A191","v":"fix vorgegebene Werte oder Text"}]
[null,{"$f":"Text!A192","v":"Gelb"},"=",{"$f":"Text!A193","v":"Zellen, in denen die Eingaben frei wählbar sind oder geändert werden können"}]
[null,{"$f":"Text!A194","v":"Grün"},"=",{"$f":"Text!A195","v":"beim Auswählen der Zelle erscheint rechts ein Kästchen mit einem Pfeil"}]
[null,null,null,{"$f":"Text!A196","v":"nach dem Anklicken des Pfeils kann der Wert aus der Liste ausgewählt werden"}]
[]
[null,{"$f":"Text!A197","v":"Blauer Text:"},null,{"$f":"Text!A198","v":"In diesem Bereich können Planungsvarianten zur Dimensionen der Siloanlage gerechnet werden,"}]
[null,null,null,{"$f":"Text!A209","v":"mit konkreten Eingaben."}]
[]
[null,"Bildschirmansicht"]
[null,{"$f":"Text!A181","v":"Die Ansicht im Blatt «Berechnung» ist optimiert auf die Anzeige auf einem PC-Bildschirm. "}]
[null,{"$f":"Text!A182","v":"Sollten Beschriftungen abgeschnitten sein, verändern Sie den Zoom-Faktor mit dem Schieber unten rechts oder"}]
[null,{"$f":"Text!A183","v":"über Menü [Ansicht] > Zoom - «benutzerdefiniert», um die beste Einstellung für ihr System zu finden. "}]
[]
[null,{"$f":"Text!A199","v":"Ermittlung Futterbedarf"}]
[null,{"$f":"Text!A200","v":"Der Futterbedarf soll aufgrund der betriebsspezifischen Fütterungsplanung eingegeben werden.  "}]
[null,{"$f":"Text!A201","v":"Der Bedarf für Sommer- und Winterfütterung wird separat dargestellt, da sich die Rationen meist erheblich unterscheiden,"}]
[null,{"$f":"Text!A202","v":"beispielsweise durch den Weideanteil."}]
[null,{"$f":"Text!A203","v":"Die vorgeschlagenen Werte rechts neben der Tabelle «Grundfutterbedarf» stammen aus dem AGRIDEA Betvor bzw. aus den GRUD."}]
[null,{"$f":"Text!A204","v":"Diese Werte sind jedoch je nach effektivem Leistungsniveau und den Erfahrungswerten aus dem Fütterungsplan anzupassen."}]
[]
[null,{"$f":"Text!A205","v":"Futterrest"}]
[null,{"$f":"Text!A206","v":"Für den %-Anteil des Futterrestes soll der individuelle Erfahrungswert des Betriebes erfasst werden."}]
[]
[null,{"$f":"Text!A207","v":"Volumen für Siloreserven"}]
[null,{"$f":"Text!A208","v":"Dieser Wert wird gemäss der auf dem Betrieb regelmässig zu erwartenden Ertragsschwankungen festgelegt."}]
[]
[null,{"$f":"Text!A210","v":"Ermittlung Lagerraumbedarf"}]
[null,{"$f":"Text!A211","v":"In den grün hinterlegten Zellen können die Angaben aus dem Tabellenblatt «Verdichtung und Vorschub» gewählt werden."}]
[null,{"$f":"Text!A212","v":"Die daraus resultierende Verdichtung passt sich automatisch an."}]
[]
[null,{"$f":"Text!A213","v":"Aus den nun eingegebenen Werten wird automatisch der Silagebedarf pro Woche ermittelt. Das Ergebnis wird"}]
[null,{"$f":"Text!A214","v":"in die Bereiche «Hochsilo» und «Fahrsilo» übertragen, jeweils in die Zeile Silagebedarf, Ø."}]
[null,{"$f":"Text!A215","v":"Daraus wird dann die maximal mögliche Anschnittfläche je für Mais- / Grassilage ermittelt, für Hoch- und Fahrsilo."}]
[null,{"$f":"Text!A216","v":"Der maximale Wert links, unter «Jahr», ergibt sich aus dem jeweils tieferen Wert: Sommer- oder Winterfütterung."}]
[]
[null,{"$f":"Text!A218","v":"Planen der Hochsilo-Dimensionen"}]
[null,{"$f":"Text!A219","v":"Ausgehend vom jeweiligen Ergebnis zum maximalen Silodurchmesser für die Lagerung der Mais- und Grassilage und den Vorgaben "}]
[null,{"$f":"Text!A220","v":"zum Vorschub können in diesem Abschnitt Varianten für die konkrete Dimensionierung der Siloanlage ermittelt werden."}]
[null,{"$f":"Text!A221","v":"Dazu können Silodurchmesser, -höhe und die Anzahl der Silos variiert werden."}]
[null,{"$f":"Text!A222","v":"Wird der minimal erforderliche Vorschub pro Woche unterschritten, erscheint in der jeweiligen Zelle der Wert in roter Farbe."}]
[null,{"$f":"Text!A223","v":"Die konkreten Abmessungen für die Ausführung werden in der Folge mit der Herstellerfirma geplant."}]
[]
[null,{"$f":"Text!A225","v":"Planen der Fahrsilo-Dimensionen"}]
[null,{"$f":"Text!A226","v":"In diesem Abschnitt besteht wieder die Möglichkeit verschiedene Varianten zur Dimensionierung zu rechnen."}]
[null,{"$f":"Text!A227","v":"Dazu ist es möglich, Breite des Fahrsilos und die Höhe des Futterstocks zu variieren."}]
[null,{"$f":"Text!A228","v":"Bei der Höhe gilt es, die vorgesehene Entnahmetechnik einzubeziehen."}]
[null,{"$f":"Text!A229","v":"Auch hier erscheint ein Warnhinweis, sobald der minimal erforderliche Vorschub unterschritten wird."}]
[null,{"$f":"Text!A230","v":"Zur Festlegung der Länge der Kammern muss die Mindestlänge eingehalten werden,"}]
[null,{"$f":"Text!A231","v":"welche für das Einbringen und Verdichten der Silage nötig ist. Siehe Merkblatt Tabelle 4"}]

{"sheet":"Verdichtung und Vorschub","index":1,"n_rows":24,"n_cols":6,"rows_kept":24,"cut":false,"hidden":false,"merged":[]}
[]
[null,{"$f":"Text!$A$128","v":"Werte zur Einschätzung der Silierbedingungen"}]
[]
[null,{"$f":"Text!A129","v":"zur Verdichtung bei der Entnahme von Silagen"}]
[]
[null,{"$f":"Text!$A$131","v":"Silierbedingungen"},null,{"$f":"Lists!B4","v":"gut"},{"$f":"Lists!B5","v":"mittel"},{"$f":"Lists!B6","v":"schlecht"}]
[null,{"$f":"Text!$A$132","v":"Verdichtung"},null,{"$f":"Text!$A$133","v":"kg TS / m³"},{"$f":"D7","v":"kg TS / m³"},{"$f":"D7","v":"kg TS / m³"}]
[null,{"$f":"Text!$A$134","v":"Gras"},{"$f":"Lists!B13","v":"< 25 % TS"},190,170,150]
[null,{"$f":"B8","v":"Gras"},{"$f":"Lists!B14","v":"25 - 35 % TS"},210,190,170]
[null,{"$f":"B8","v":"Gras"},{"$f":"Lists!B15","v":"> 35 % TS"},230,210,190]
[]
[null,{"$f":"Text!$A$135","v":"Mais"},{"$f":"Lists!B9","v":"< 30 % TS"},230,210,190]
[null,{"$f":"B12","v":"Mais"},{"$f":"Lists!B10","v":"30 - 35 % TS"},250,230,200]
[null,{"$f":"B12","v":"Mais"},{"$f":"Lists!B11","v":"> 35 % TS"},270,250,220]
[]
[null,{"$f":"Text!A123","v":"Ausgehend von den oben genannten Verdichtungswerten ergeben sich untenstehende Werte"}]
[null,{"$f":"Text!A130","v":"zum Vorschub bei der Entnahme von Silagen."}]
[]
[null,{"$f":"Text!$A$136","v":"Vorschub"},null,{"$f":"Text!A126","v":"m / Woche"},{"$f":"D19","v":"m / Woche"},{"$f":"D19","v":"m / Woche"}]
[null,{"$f":"Text!$A$137","v":"Winter"},null,{"$f":"Text!$A$138","v":"< 0.75"},{"$f":"Text!$A$139","v":"0.75 - 1.5"},{"$f":"Text!$A$140","v":"> 1.5"}]
[null,{"$f":"Text!$A$141","v":"Sommer"},null,{"$f":"Text!$A$142","v":"< 1.5"},{"$f":"Text!$A$143","v":"1.5 - 2.5"},{"$f":"Text!$A$144","v":"> 2.5"}]
[]
[null,{"$f":"Text!$A$145","v":"Die genannten Zahlen sind zur Orientierung gedacht und nicht als starre Grenzen zu betrachten."}]
[null,{"$f":"Text!$A$146","v":"Quelle: dlg-Praxishandbuch Futter- und Substratkonzentrierung (2012), S. 96"}]

{"sheet":"Bestimmung TS-Gehalt","index":2,"n_rows":36,"n_cols":10,"rows_kept":36,"cut":false,"hidden":false,"merged":[]}
[]
[null,{"$f":"Text!A160","v":"Schätzung des Trockensubstanzgehaltes von Silagen mittels Handprobe"}]
[]
[null,{"$f":"Text!A154","v":"Grassilage"}]
[]
[null,{"$f":"Text!A156","v":"Winden Sie die Probe wie einen Waschlappen aus und fassen Sie dabei nicht nach (Strangprobe)."}]
[null,{"$f":"Text!A157","v":"Wenn die Silage sehr nass ist, drücken Sie eine Kugel davon in der Hand aus (Kugelprobe)."}]
[]
[null,{"$f":"Text!A151","v":"Probeart"},{"$f":"Text!A152","v":"Saftaustritt"},null,null,null,null,null,null,{"$f":"Text!A153","v":"TS-Gehalt"}]
[null,{"$f":"Text!A158","v":"Kugelprobe"},{"$f":"Text!$A$163","v":"Saftfluss bei leichtem Pressen"},null,null,null,null,null,null,{"$f":"Lists!B109","v":"< 20 %"}]
[null,{"$f":"Text!A158","v":"Kugelprobe"},{"$f":"Text!$A$164","v":"Saftfluss bei starkem Presse"},null,null,null,null,null,null,{"$f":"Lists!B110","v":"25 %"}]
[null,{"$f":"Text!A159","v":"Strangprobe"},{"$f":"Text!$A$165","v":"Nach dem Auswinden Saft zwischen den Fingern"},null,null,null,null,null,null,{"$f":"Lists!B111","v":"30 %"}]
[null,{"$f":"Text!A159","v":"Strangprobe"},{"$f":"Text!$A$166","v":"Nach dem Auswinden kein Saft zwischen den Fingern, aber feuchte Hände"},null,null,null,null,null,null,{"$f":"Lists!B112","v":"35 %"}]
[null,{"$f":"Text!A159","v":"Strangprobe"},{"$f":"Text!$A$167","v":"Nach dem Auswinden glänzen die Hände noch"},null,null,null,null,null,null,{"$f":"Lists!B113","v":"40 %"}]
[null,{"$f":"Text!A159","v":"Strangprobe"},{"$f":"Text!$A$168","v":"Nach dem Auswinden ein leichtes Feuchtegefühl"},null,null,null,null,null,null,{"$f":"Lists!B114","v":"45 %"}]
[null,{"$f":"Text!A159","v":"Strangprobe"},{"$f":"Text!$A$169","v":"Nach dem Auswinden sind die Hände komplett trocken"},null,null,null,null,null,null,{"$f":"Lists!B115","v":"> 45 %"}]
[]
[null,{"$f":"Text!A170","v":"aus Merkblatt  \"Schlüssel zur Beurteilung der Grassilage-Qualität\" der Arbeitsgemeinschaft zur Förderung des Futterbaues (AGFF-K3b)"}]
[]
[null,{"$f":"Text!A155","v":"Maissilage"}]
[]
[null,{"$f":"Text!A171","v":"Nehmen Sie von der Maissilage soviel in die Hand, dass die Hand danach nicht vollständig geschlossen ist. Drücken Sie anschliessend "}]
[null,{"$f":"Text!A172","v":"auf die Maissilage ohne zu Pressen. Beobachten Sie das Auftreten von Flüssigkeit oder Feuchtigkeit zwischen den Fingern."}]
[]
[null,{"$f":"C9","v":"Saftaustritt"},null,null,null,null,null,null,null,{"$f":"J9","v":"TS-Gehalt"}]
[null,{"$f":"Text!B173","v":"Saft fliesst deutlich sichtbar"},null,null,null,null,null,null,null,{"$f":"Lists!B117","v":"< 30 %"}]
[null,{"$f":"Text!B174","v":"Es fliesst ein wenig Saft"},null,null,null,null,null,null,null,{"$f":"Lists!B118","v":"30 - 32 %"}]
[null,{"$f":"Text!B175","v":"Es tritt etwas Feuchtigkeit zwischen den Fingern auf, aber es tropft nicht"},null,null,null,null,null,null,null,{"$f":"Lists!B119","v":"32 - 36 %"}]
[null,{"$f":"Text!B176","v":"Es ist noch ein wenig Feuchtigkeit fühlbar"},null,null,null,null,null,null,null,{"$f":"Lists!B120","v":"36 - 38 %"}]
[null,{"$f":"Text!B177","v":"Es ist keine Feuchtigkeit mehr fühlbar"},null,null,null,null,null,null,null,{"$f":"Lists!B121","v":"> 38 %"}]
[]
[null,{"$f":"Text!B178","v":"aus Merkblatt  \"Schlüssel zur Beurteilung der Maissilage-Qualität\" der Arbeitsgemeinschaft zur Förderung des Futterbaues (AGFF-K3c)"}]
[]
[null,{"$f":"Text!A233","v":"Rumiplan "}]
[null,{"$f":"Text!A235","v":"https://www.barto.ch/de/bausteine/uebersicht/rumiplan-370"}]
[null,{"$f":"Text!A234","v":"Link in Textform: Kopieren Sie den Link in Ihren Browser, um zum Rumiplan zu gelangen."}]

{"sheet":"Berechnung","index":3,"n_rows":87,"n_cols":27,"rows_kept":87,"cut":false,"hidden":false,"merged":[]}
[]
[]
[null,null,null,null,null,null,null,null,null,null,{"$f":"Text!$A$111","v":"Version 2.01"}]
[null,{"$f":"Text!$A$10","v":"Silo-Dimensionen planen"}]
[null,null,null,null,null,null,null,{"$f":"Text!$A$11","v":"Variante"}]
[null,{"$f":"Text!$A$12","v":"Bauprojekt"},null,null,null,null,null,{"$f":"Text!$A$13","v":"Projekt-Nr."}]
[null,{"$f":"Text!$A$14","v":"BeraterIn: Name, Tel."}]
[]
[null,{"$f":"Text!$A$15","v":"Betriebsbezeichnung"}]
[null,{"$f":"Text!$A$16","v":"Name, Vorname"}]
[null,{"$f":"Text!$A$17","v":"Strasse, Haus-Nr."}]
[null,{"$f":"Text!$A$18","v":"PLZ, Ort"},null,null,null,null,null,{"$f":"Text!$A$19","v":"Kanton"}]
[null,{"$f":"Text!$A$20","v":"Telefon"},null,null,null,null,null,{"$f":"Text!$A$21","v":"Fax, E-Mail"}]
[]
[null,null,null,null,null,null,null,null,null,null,{"$f":"IF(L15=1,Text!A56,\"\")","v":""},{"$f":"IF(AND(SUM(H23:I33)>0,I16=0),1,0)","v":0}]
[null,{"$f":"Text!$A$22","v":"Sommer- und Winterperiode in Tagen"},null,null,null,{"$f":"Text!$A$23","v":"Jahr"},365,{"$f":"Text!$A$24","v":"Sommer"},null,{"$f":"Text!$A$25","v":"Winter"},{"$f":"G16-I16","v":365},null,null,null,null,null,"Grundannahmen, für produktive Version wieder entfernen"]
[null,null,null,null,null,null,{"$f":"G$16/7","v":52.142857142857146},null,{"$f":"I$16/7","v":0},null,{"$f":"K$16/7","v":52.142857142857146}]
[null,{"$f":"Text!$A$26","v":"Grundfutterbedarf"},null,null,null,{"$f":"Text!$A$27","v":"Silagebedarf"},null,{"$f":"Text!$A$28","v":"im Sommer"},null,{"$f":"Text!$A$29","v":"im Winter"}]
[null,null,null,null,null,{"$f":"Text!$A$30","v":"im ganzen Jahr"},null,{"$f":"F21","v":"Grassilage"},{"$f":"G21","v":"Maissilage"},{"$f":"F21","v":"Grassilage"},{"$f":"G21","v":"Maissilage"}]
[null,null,null,null,{"$f":"Text!$A$31","v":"Grundfutterver-"},null,null,{"$f":"Text!$A$34","v":"Anteil am"},{"$f":"H20","v":"Anteil am"},{"$f":"H20","v":"Anteil am"},{"$f":"H20","v":"Anteil am"},"werden später wieder entfernt"]
[null,{"$f":"Text!$A$35","v":"Tiere"},null,{"$f":"Text!$A$36","v":"Plätze"},{"$f":"Text!$A$37","v":"zehr je Tier in"},{"$f":"Text!$A$32","v":"Grassilage"},{"$f":"Text!$A$33","v":"Maissilage"},{"$f":"Text!$A$38","v":"Grundfutter"},{"$f":"H21","v":"Grundfutter"},{"$f":"H21","v":"Grundfutter"},{"$f":"H21","v":"Grundfutter"},"Gras- und Mais-","Restliches Grund-","GrundfutterVZ",null,null,"Der Grundfutterverzehr wird in TS angegeben."]
[null,null,null,null,{"$f":"Text!$A$39","v":"kg TS pro Tag"},null,null,{"$f":"Text!$A$40","v":"in %"},{"$f":"H22","v":"in %"},{"$f":"H22","v":"in %"},{"$f":"H22","v":"in %"},"silage in kg TS","futter in kg TS","Jahr gesamt in kg TS",null,null,"Anteil am Grundfutter:"]
[null,{"$f":"Text!$A$41","v":"Milchkühe "},{"$f":"Text!$A$42","v":"in Laktation"},null,{"$f":"IF(D23>0,AA23,0)","v":0},{"$f":"$D23*$E23*(H23*$I$16 + J23*$K$16)/100","v":0},{"$f":"$D23*$E23*(I23*$I$16 + K23*$K$16)/100","v":0},null,null,null,null,{"$f":"F23+G23","v":0},{"$f":"N23-L23","v":0},{"$f":"D23*E23*365","v":0},null,null,"Aufteilung in Grassilage, Maissilage, Rest ",null,null,null,null,null,null,null,null,null,15.6]
[null,{"$f":"B23","v":"Milchkühe "},{"$f":"Text!$A$43","v":"galt"},null,0,{"$f":"$D24*$E24*(H24*$I$16 + J24*$K$16)/100","v":0},{"$f":"$D24*$E24*(I24*$I$16 + K24*$K$16)/100","v":0},null,null,null,null,{"$f":"F24+G24","v":0},{"$f":"N24-L24","v":0},0,null,null,"im Rest sind alle anderen Grundfutter berücksichtigt,",null,null,null,null,null,null,null,null,null,11.1]
[null,{"$f":"Text!$A$44","v":"Jungvieh"},{"$f":"Text!$A$45","v":"bis 1 Jahr"},null,0,0,0,null,null,null,null,0,0,0,null,null,"einschliesslich Weideanteil",null,null,null,null,null,null,null,null,null,3]
[null,{"$f":"B25","v":"Jungvieh"},{"$f":"Text!$A$46","v":"1 bis 2 Jahre"},null,0,0,0,null,null,null,null,0,0,0,null,null,"Hier wird nur noch ein getragen, wieviel % an Silage gefüttert werden",null,null,null,null,null,null,null,null,null,7.1]
[null,{"$f":"B25","v":"Jungvieh"},{"$f":"Text!$A$47","v":"über 2 Jahre"},null,0,0,0,null,null,null,null,0,0,0,null,null,"das bedeutet:",null,null,null,null,null,null,null,null,null,9]
[null,{"$f":"Text!$A$48","v":"Rindviehmast"},{"$f":"Text!$A$49","v":"bis 160 Tage"},null,0,0,0,null,null,null,null,0,0,0,null,null,"Summe Gras- und Maissilage < 100 %",null,null,null,null,null,null,null,null,null,3.85]
[null,{"$f":"B28","v":"Rindviehmast"},{"$f":"Text!$A$50","v":"über 160 Tage"},null,0,0,0,null,null,null,null,0,0,0,null,null,"und maximal 100 % (nur eine Art von Silage und NICHTS ANDERES)",null,null,null,null,null,null,null,null,null,5.6]
[null,null,null,null,null,0,0,null,null,null,null,0,0,0,null,null,null,null,null,null,null,null,null,null,null,null,3.83]
[null,null,null,null,null,0,0,null,null,null,null,0,0,0]
[null,null,null,null,null,0,0,null,null,null,null,0,0,0]
[null,null,null,null,null,0,0,null,null,null,null,0,0,0]
[]
[null,{"$f":"Text!$A$51","v":"Errechneter TS-Verzehr"},null,{"$f":"Text!$A$52","v":"kg TS"},{"$f":"Text!$A$53","v":"pro Woche"},{"$f":"F36/$G$17","v":0},{"$f":"G36/$G$17","v":0},{"$f":"SUMPRODUCT($E23:$E33,H23:H33,$D23:$D33)*7/100","v":0},{"$f":"SUMPRODUCT($E23:$E33,I23:I33,$D23:$D33)*7/100","v":0},{"$f":"SUMPRODUCT($E23:$E33,J23:J33,$D23:$D33)*7/100","v":0},{"$f":"SUMPRODUCT($E23:$E33,K23:K33,$D23:$D33)*7/100","v":0},{"$f":"L36/$G$17","v":0},{"$f":"M36/$G$17","v":0},{"$f":"N36/$G$17","v":0},null,null,"Faktor Sommertage / 365 in Formel, da Eingabe Ganzjahresplätze"]
[null,null,null,null,{"$f":"Text!$A$54","v":"pro Jahr"},{"$f":"SUM(H36,J36)","v":0},{"$f":"SUM(I36,K36)","v":0},{"$f":"H35*I16/7","v":0},{"$f":"I35*$I$16/7","v":0},{"$f":"J35*$K$16/7","v":0},{"$f":"K35*$K$16/7","v":0},{"$f":"SUM(L23:L33)","v":0},{"$f":"SUM(M23:M33)","v":0},{"$f":"SUM(N23:N33)","v":0},null,null,"Winter analog"]
[null,{"$f":"Text!$A$55","v":"Futterrest"},null,"%",5," 5 %"]
[null,{"$f":"Text!$A$57","v":"Volumen für Siloreserven"},null,"%",10,"10 %",null,null,null,null,{"$f":"Text!$A$59","v":"zur Sicherstellung des Lagerraumbedarfs bei witterungsbedingten Ertragsschwankungen"}]
[null,{"$f":"Text!$A$60","v":"Konservierungsverlust"},null,"%",15]
[null,{"$f":"Text!$A$61","v":"Errechnete Futtermenge"},null,{"$f":"D35","v":"kg TS"},{"$f":"E35","v":"pro Woche"},{"$f":"F41/$G$17","v":0},{"$f":"G41/$G$17","v":0},{"$f":"H35*(1+SUM($E$37:$E$39)/100)","v":0},{"$f":"I35*(1+SUM($E$37:$E$39)/100)","v":0},{"$f":"J35*(1+SUM($E$37:$E$39)/100)","v":0},{"$f":"K35*(1+SUM($E$37:$E$39)/100)","v":0}]
[null,{"$f":"Text!$A$62","v":" inkl. Verluste und Siloreserven"},null,{"$f":"D35","v":"kg TS"},{"$f":"E36","v":"pro Jahr"},{"$f":"SUM(H41,J41)","v":0},{"$f":"SUM(I41,K41)","v":0},{"$f":"H40*52*$I$16/G16","v":0},{"$f":"I40*52*$I$16/G16","v":0},{"$f":"J40*$K$16/7","v":0},{"$f":"K40*$K$16/7","v":0}]
[]
[null,{"$f":"Text!A67","v":"Ermittlung Lagerraumbedarf"}]
[null,null,null,null,{"$f":"F21","v":"Grassilage"},null,null,{"$f":"G21","v":"Maissilage"}]
[null,{"$f":"Text!$A$63","v":"Trockensubstanzgehalt"},null,null,null,null,"25 - 35 % TS",null,null,{"$f":"Lists!B10","v":"30 - 35 % TS"}]
[null,{"$f":"Text!$A$66","v":"Silier- und Entnahmebedingungen"},null,null,null,null,"mittel",null,null,"mittel",null,null,null,null,null,null,"Trockensubstanzgehalt im Sommer und Winter derselbe"]
[null,{"$f":"Text!$A$69","v":"Verdichtung"},null,{"$f":"Text!$A$133","v":"kg TS / m³"},null,null,{"$f":"IFERROR(INDEX('Verdichtung und Vorschub'!arr_data_gras,MATCH(G45,Lists!lst_grassil,0),MATCH(G46,lst_cond,0)),0)","v":190},null,null,{"$f":"IFERROR(INDEX('Verdichtung und Vorschub'!arr_data_cornsil,MATCH(J45,Lists!lst_cornsil,0),MATCH(J46,lst_cond,0)),0)","v":230}]
[]
[null,null,null,null,{"$f":"Text!$A$70","v":"Jahr"},{"$f":"Text!$A$71","v":"Sommer"},{"$f":"Text!$A$72","v":"Winter"},{"$f":"E49","v":"Jahr"},{"$f":"F49","v":"Sommer"},{"$f":"G49","v":"Winter"}]
[null,{"$f":"Text!$A$73","v":"Fütterungswochen"},null,null,null,{"$f":"I17","v":0},{"$f":"K17","v":52.142857142857146},null,{"$f":"F50","v":0},{"$f":"G50","v":52.142857142857146}]
[null,{"$f":"Text!$A$74","v":"Silagebedarf, Ø"},null,{"$f":"Text!$A$75","v":"in m³ pro Woche"},{"$f":"F40/$G$47","v":0},{"$f":"IF(F50>0,F40/G$47,0)","v":0},{"$f":"J40/$G$47","v":0},{"$f":"G40/$J$47","v":0},{"$f":"IF(I50>0,I40/J$47,0)","v":0},{"$f":"K40/$J$47","v":0}]
[null,{"$f":"Text!$A$76","v":"Lagerraumbedarf"},null,{"$f":"Text!$A$77","v":"in m³ insgesamt"},{"$f":"SUM(F52,G52)","v":0},{"$f":"F51*$F$50","v":0},{"$f":"G51*$G$50","v":0},{"$f":"SUM(I52,J52)","v":0},{"$f":"I51*$F$50","v":0},{"$f":"J51*$G$50","v":0},null,null,{"$f":"B54","v":"Hochsilo"},{"$f":"Lists!$B$4","v":"gut"},{"$f":"Lists!$B$5","v":"mittel"},{"$f":"Lists!$B$6","v":"schlecht"},"Diese Tabelle dient der Erfassung des Mindestvorschubs im TOOL"]
[null,null,null,null,null,null,null,null,null,null,null,null,{"$f":"$F$49","v":"Sommer"},1.25,1.5,1.75]
[null,{"$f":"Text!$A$78","v":"Hochsilo"},null,null,{"$f":"$E$49","v":"Jahr"},{"$f":"$F$49","v":"Sommer"},{"$f":"$G$49","v":"Winter"},{"$f":"$H$49","v":"Jahr"},{"$f":"$I$49","v":"Sommer"},{"$f":"$J$49","v":"Winter"},null,null,{"$f":"$G$49","v":"Winter"},1,1.25,1.5]
[null,{"$f":"B51","v":"Silagebedarf, Ø"},null,{"$f":"Text!$A$79","v":"pro Woche in m³"},null,{"$f":"$F$51","v":0},{"$f":"$G$51","v":0},null,{"$f":"$I$51","v":0},{"$f":"$J$51","v":0},null,null,{"$f":"M53","v":"Sommer"},{"$f":"M54","v":"Winter"},{"$f":"M53","v":"Sommer"},{"$f":"M54","v":"Winter"}]
[null,{"$f":"Text!$A$80","v":"Mindestvorschub"},null,{"$f":"Text!$A$81","v":"pro Woche in m "},{"$f":"MAX(F56:G56)","v":0},{"$f":"IF(F55>0,M56,0)","v":0},{"$f":"IF(G55>0,N56,0)","v":0},{"$f":"MAX(I56:J56)","v":0},{"$f":"IF(I55>0,O56,0)","v":0},{"$f":"IF(J55>0,P56,0)","v":0},null,null,{"$f":"IFERROR(INDEX(arr_data_high,MATCH($M55,$M$53:$M$54,0),MATCH($G$46,lst_cond,0)),0)","v":1.5},{"$f":"IFERROR(INDEX(arr_data_high,MATCH($N55,$M$53:$M$54,0),MATCH($G$46,lst_cond,0)),0)","v":1.25},{"$f":"IFERROR(INDEX(arr_data_high,MATCH($O55,$M$53:$M$54,0),MATCH($J$46,lst_cond,0)),0)","v":1.5},{"$f":"IFERROR(INDEX(arr_data_high,MATCH($P55,$M$53:$M$54,0),MATCH($J$46,lst_cond,0)),0)","v":1.25},"ç",{"$f":"Text!$A$217","v":"Diese Werte werden für den Mndestvorschub verwendet."}]
[null,{"$f":"Text!$A$82","v":"Maximal mögliche Anschnittfläche"},null,"m²",{"$f":"IF(F57>0,MIN(F57:G57),G57)","v":0},{"$f":"IF(F55>0,F55/F56,0)","v":0},{"$f":"IF(G55>0,G55/G56,0)","v":0},{"$f":"IF(I57>0,MIN(I57:J57),J57)","v":0},{"$f":"IF(I55>0,I55/I56,0)","v":0},{"$f":"IF(J55>0,J55/J56,0)","v":0}]
[null,{"$f":"Text!$A$83","v":"Silodurchmesser, max. "},null,"m ",{"$f":"ROUNDDOWN(2*IF(F58>0,MIN(G58,F58),G58)+0.25,0)/2","v":0},{"$f":"2* SQRT(F57/PI())","v":0},{"$f":"2* SQRT(G57/PI())","v":0},{"$f":"ROUNDDOWN(2*IF(I58>0,MIN(J58,I58),J58)+0.25,0)/2","v":0},{"$f":"2* SQRT(I57/PI())","v":0},{"$f":"2* SQRT(J57/PI())","v":0},null,null,null,"Berechnung Winter",null,null,"damit das erfüllt werden kann, muss der Durchmesser angepassst werden"]
[null,{"$f":"Text!$A$84","v":"Theoretische Silohöhe"},null,{"$f":"D58","v":"m "},null,{"$f":"F56*$F$50","v":0},{"$f":"G56*G50","v":0},null,{"$f":"I56*$F$50","v":0},{"$f":"J56*J50","v":0},null,null,null,"mit Sommerdurchmesser",null,null,"Wie weit komme ich pro Woche, wenn Anschnittfläche kleiner als MAximum"]
[null,null,null,null,null,null,null,null,null,null,null,null,null,{"$f":"E44","v":"Grassilage"},{"$f":"H44","v":"Maissilage"},null,"Silohöhe = Vorschub pro Woche * Anzahl Wochen"]
[null,{"$f":"Text!$A$85","v":"Planen der Hochsilo-Dimensionen mit konkreten Abmessungen"},null,null,null,null,null,null,null,null,null,null,null,null,null,null,"für Höhe bei nur einem Silo"]
[null,{"$f":"Text!$A$86","v":"Silodurchmesser"},null,{"$f":"D59","v":"m "},null,{"$f":"ROUNDDOWN(2*F58+0.25,0)/2","v":0},{"$f":"ROUNDDOWN(2*G58+0.25,0)/2","v":0},null,{"$f":"ROUNDDOWN(2*I58+0.25,0)/2","v":0},{"$f":"ROUNDDOWN(2*J58+0.25,0)/2","v":0},null,null,null,{"$f":"F62","v":0},{"$f":"I62","v":0},null,"blaue !!! - deaktiviert durch weisse Schrift in Zeile:",null,null,null,{"$f":"ROW(K64)","v":64}]
[null,{"$f":"Text!$A$87","v":"Anschnittfläche"},null,"m²",{"$f":"E62*E62*PI()/4","v":0},0,0,0,0,0,null,null,null,{"$f":"N62*N62*PI()/4","v":0},{"$f":"O62*O62*PI()/4","v":0},null,"Wie weit komme ich pro Woche, wenn Anschnittfläche kleiner als MAX?"]
[null,{"$f":"Text!$A$88","v":"Vorschub"},null,{"$f":"D56","v":"pro Woche in m "},{"$f":"ROUNDUP(IF(E63>0,IF(F51>0,F$51,G51)/E63,0),1)","v":0},{"$f":"IF(F63>0,F$51/F63,0)","v":0},{"$f":"IF(G63>0,G$51/G63,0)","v":0},{"$f":"ROUNDUP(IF(H63>0,IF(I51>0,I$51,J51)/H63,0),1)","v":0},{"$f":"IF(I63>0,I$51/I63,0)","v":0},{"$f":"IF(J63>0,J$51/J63,0)","v":0},{"$f":"IF(AND(SUM(H64,E64),L64=1),\"!!!\",0)","v":0},{"$f":"IF(OR(H64<H56,E64<E56),1,0)","v":0},null,{"$f":"IFERROR(G$51/N63,0)","v":0},{"$f":"IFERROR(J$51/O63,0)","v":0},null,"Tatsächlicher Vorschub, errechnet aus Anschnittfläche und Silagebedarf"]
[null,{"$f":"Text!$A$89","v":"Erforderliche Höhe insgesamt"},null,{"$f":"D58","v":"m "},{"$f":"IFERROR(E52/E63,0)","v":0},{"$f":"IF(F63>0,F52/F63,0)","v":0},{"$f":"IF(G63>0,G52/G63,0)","v":0},{"$f":"IFERROR(H52/H63,0)","v":0},{"$f":"IF(I63>0,I52/I63,0)","v":0},{"$f":"IF(J63>0,J52/J63,0)","v":0},null,null,null,{"$f":"N64*G50","v":0},{"$f":"O64*G50","v":0},null,"Silohöhe = Lagerraumbedarf / Anschnittfläche"]
[null,{"$f":"Text!$A$90","v":"Silohöhe, nutzbar"},null,{"$f":"Text!$A$91","v":"max. 26 m"},null,{"$f":"IF(E65>0,26,0)","v":0},null,null,{"$f":"IF(H65>0,26,0)","v":0},null,null,null,null,null,null,null,"Silohöhe = Vorschub pro Woche * Anzahl Wochen"]
[null,{"$f":"Text!$A$92","v":"Anzahl Silos bei gewählter Höhe, Stk."},null,null,{"$f":"ROUNDUP(IF(E66>0,E65/E66,0),0)","v":0},{"$f":"ROUNDUP(IF(F66>0,E65/F66,0),1)","v":0},null,{"$f":"ROUNDUP(IF(H66>0,H65/H66,0),0)","v":0},{"$f":"ROUNDUP(IF(I66>0,H65/I66,0),1)","v":0},{"$f":"ROUNDUP(I67,0)","v":0}]
[null,{"$f":"Text!$A$93","v":"Anzahl Silos"}]
[null,{"$f":"Text!$A$94","v":"Silohöhe bei gewählter Anzahl Silos in m"},null,null,{"$f":"ROUNDUP(IF(E68>0,E65/E68,0),1)","v":0},{"$f":"IF(F68>0,E67/F68,0)","v":0},{"$f":"ROUNDUP(F69,0)","v":0},{"$f":"ROUNDUP(IF(H68>0,H65/H68,0),1)","v":0},{"$f":"IF(I68>0,H67/I68,0)","v":0},{"$f":"ROUNDUP(I69,0)","v":0},null,null,{"$f":"B71","v":"Fahrsilo"},{"$f":"Lists!$B$4","v":"gut"},{"$f":"Lists!$B$5","v":"mittel"},{"$f":"Lists!$B$6","v":"schlecht"},"Diese Tabelle dient der Erfassung des Mindestvorschubs im TOOL"]
[null,null,null,null,null,null,null,null,null,null,null,null,{"$f":"$F$49","v":"Sommer"},1.5,2,2.5]
[null,{"$f":"Text!$A$95","v":"Fahrsilo"},null,null,{"$f":"$E$49","v":"Jahr"},{"$f":"$F$49","v":"Sommer"},{"$f":"$G$49","v":"Winter"},{"$f":"$H$49","v":"Jahr"},{"$f":"$I$49","v":"Sommer"},{"$f":"$J$49","v":"Winter"},null,null,{"$f":"$G$49","v":"Winter"},1,1.25,1.5]
[null,{"$f":"B55","v":"Silagebedarf, Ø"},null,{"$f":"Text!$A$96","v":"pro Woche in m³"},null,{"$f":"$F$51","v":0},{"$f":"$G$51","v":0},null,{"$f":"I51","v":0},{"$f":"J51","v":0},null,null,{"$f":"M70","v":"Sommer"},{"$f":"M71","v":"Winter"},{"$f":"M70","v":"Sommer"},{"$f":"M71","v":"Winter"}]
[null,{"$f":"B56","v":"Mindestvorschub"},null,{"$f":"Text!$A$97","v":"pro Woche in m "},{"$f":"MAX(F73:G73)","v":0},{"$f":"IF(F$72>0,M73,0)","v":0},{"$f":"IF(G72>0,N73,0)","v":0},{"$f":"MAX(I73:J73)","v":0},{"$f":"IF(I72>0,O73,0)","v":0},{"$f":"IF(J72>0,P73,0)","v":0},null,null,{"$f":"IFERROR(INDEX(arr_data_drive,MATCH($M72,$M$70:$M$71,0),MATCH($G$46,lst_cond,0)),0)","v":2},{"$f":"IFERROR(INDEX(arr_data_drive,MATCH($N72,$M$70:$M$71,0),MATCH($G$46,lst_cond,0)),0)","v":1.25},{"$f":"IFERROR(INDEX(arr_data_drive,MATCH($O72,$M$70:$M$71,0),MATCH($J$46,lst_cond,0)),0)","v":2},{"$f":"IFERROR(INDEX(arr_data_drive,MATCH($P72,$M$70:$M$71,0),MATCH($J$46,lst_cond,0)),0)","v":1.25},"ç",{"$f":"Text!$A$217","v":"Diese Werte werden für den Mndestvorschub verwendet."}]
[null,{"$f":"Text!$A$98","v":"Maximal mögliche Anschnittfläche"},null,"m²",{"$f":"IF(F74>0,MIN(F74:G74),G74)","v":0},{"$f":"IF(F72>0,F72/F73,0)","v":0},{"$f":"IF(G72>0,G72/G73,0)","v":0},{"$f":"IF(I74>0,MIN(I74:J74),J74)","v":0},{"$f":"IF(I72>0,I72/I73,0)","v":0},{"$f":"IF(J72>0,J72/J73,0)","v":0},null,null,null,null,null,null,"damit das erfüllt werden kann, muss der Durchmesser angepassst werden"]
[null,{"$f":"Text!$A$99","v":"Silolänge"},null,{"$f":"D59","v":"m "},{"$f":"SUM(F75:G75)","v":0},{"$f":"F73*$F$50","v":0},{"$f":"IF(G72>0,G73*$G$50,0)","v":0},{"$f":"SUM(I75:J75)","v":0},{"$f":"I73*$F$50","v":0},{"$f":"IF(J72>0,J73*$G$50,0)","v":0}]
[null,{"$f":"Text!$A$100","v":"Silobreite bei Silohöhe von 2.5 m"},null,{"$f":"D75","v":"m "},{"$f":"IF(F72>0,MIN(F76:G76),G76)","v":0},{"$f":"ROUNDDOWN(2*F74/2.5+0.25,0)/2","v":0},{"$f":"ROUNDDOWN(2*G74/2.5+0.25,0)/2","v":0},{"$f":"IF(I72>0,MIN(I76:J76),J76)","v":0},{"$f":"ROUNDDOWN(2*I74/2.5+0.25,0)/2","v":0},{"$f":"ROUNDDOWN(2*J74/2.5+0.25,0)/2","v":0}]
[null,null,null,null,null,null,null,null,null,null,null,null,null,"Berechnung Winter"]
[null,{"$f":"Text!$A$101","v":"Planen der Fahrsilo-Dimensionen mit konkreten Abmessungen"}]
[null,{"$f":"Text!$A$102","v":"Silobreite"},null,{"$f":"D75","v":"m "},null,{"$f":"F76","v":0},{"$f":"G76","v":0},null,{"$f":"I76","v":0},{"$f":"J76","v":0},null,null,null,"mit Sommerabmessungen"]
[null,{"$f":"Text!$A$103","v":"Silohöhe"},{"$f":"Text!$A$104","v":"max. 4.0 m"},{"$f":"D75","v":"m "},null,{"$f":"IF(F$72>0,2.5,0)","v":0},{"$f":"IF(G$72>0,2.5,0)","v":0},null,{"$f":"IF(I$72>0,2.5,0)","v":0},{"$f":"IF(J$72>0,2.5,0)","v":0},null,null,null,{"$f":"N60","v":"Grassilage"},{"$f":"O60","v":"Maissilage"}]
[null,{"$f":"B63","v":"Anschnittfläche"},null,"m²",{"$f":"E79*E80","v":0},0,0,0,0,0,null,null,null,{"$f":"F81","v":0},{"$f":"I81","v":0}]
[null,{"$f":"B64","v":"Vorschub"},null,{"$f":"D73","v":"pro Woche in m "},{"$f":"ROUNDUP(IF(E81>0,E51/E81,0),1)","v":0},{"$f":"IFERROR(F$51/F81,0)","v":0},{"$f":"IFERROR(G$51/G81,0)","v":0},{"$f":"ROUNDUP(IF(H81>0,H51/H81,0),1)","v":0},{"$f":"IFERROR(I$51/I81,0)","v":0},{"$f":"IFERROR(J$51/J81,0)","v":0},{"$f":"IF(AND(SUM(H82,E82),L82=1),\"!!!\",0)","v":0},{"$f":"IF(OR(H82<H73,E82<E73),1,0)","v":0},null,{"$f":"IFERROR(G$51/N81,0)","v":0},{"$f":"IFERROR(J$51/O81,0)","v":0},null,"blaue !!! - deaktiviert durch weisse Schrift"]
[null,{"$f":"Text!$A$105","v":"Erforderliche Länge insgesamt"},null,{"$f":"D75","v":"m "},{"$f":"IFERROR(E52/E81,0)","v":0},0,0,0,0,0,null,null,null,{"$f":"G50*N82","v":0},{"$f":"O82*G50","v":0},null,"Silolänge = Lagerraumbedarf / Anschnittfläche"]
[null,{"$f":"Text!$A$106","v":"Anzahl Kammern"},null,{"$f":"Text!$A$107","v":"Stk."},null,null,null,null,null,null,null,null,null,null,null,null,"Silolänge = Vorschub pro Woche * Anzahl Wochen"]
[null,{"$f":"Text!$A$108","v":"Silolänge bei gewählter Anzahl Kammern in m"},null,null,{"$f":"IFERROR(ROUNDUP(E83/E84,0),0)","v":0},{"$f":"IFERROR(E83/E84,0)","v":0},null,{"$f":"IFERROR(ROUNDUP(H83/H84,0),0)","v":0},{"$f":"IFERROR(H83/H84,0)","v":0}]
[null,{"$f":"Text!$A$109","v":"Silolänge"}]
[null,{"$f":"Text!$A$110","v":"Anzahl Kammern bei gewählter Silolänge, Stk."},null,null,{"$f":"IFERROR(ROUNDUP(E83/E86,0),0)","v":0},{"$f":"IF(E86>0,E83/E86,0)","v":0},null,{"$f":"IFERROR(ROUNDUP(H83/H86,0),0)","v":0},{"$f":"IF(H86>0,H83/H86,0)","v":0}]

{"sheet":"Lists","index":4,"n_rows":121,"n_cols":4,"rows_kept":121,"cut":false,"hidden":true,"merged":[]}
[]
[null,{"$f":"Text!idx_lan","v":1}]
[null,"Used","Deutsch","Francais"]
["lst_cond",{"$f":"IF(idx_lan = 1,C4,IF(idx_lan = 2,D4,0))","v":"gut"},"gut"]
[null,"mittel","mittel"]
[null,"schlecht","schlecht"]
[null,0]
[null,0]
["lst_cornsil","< 30 % TS","< 30 % TS"]
[null,"30 - 35 % TS","30 - 35 % TS"]
[null,"> 35 % TS","> 35 % TS"]
[null,0]
["lst_grassil","< 25 % TS","< 25 % TS"]
[null,"25 - 35 % TS","25 - 35 % TS"]
[null,"> 35 % TS","> 35 % TS"]
[]
["lst_tab",{"$f":"IF(idx_lan = 1,C17,IF(idx_lan = 2,D17,0))","v":"Berechnung"},"Berechnung"]
[null,{"$f":"IF(idx_lan = 1,C18,IF(idx_lan = 2,D18,0))","v":"Verdichtung und Vorschub"},"Verdichtung und Vorschub"]
[null,{"$f":"IF(idx_lan = 1,C19,IF(idx_lan = 2,D19,0))","v":"Weitere Informationen"},"Weitere Informationen"]
[]
[]
[]
["lst_d",2.5]
["Silodurchmesser",3]
[null,3.5]
[null,4]
[null,4.5]
[null,5]
[null,5.5]
[null,6]
[null,6.5]
[null,7]
[null,7.5]
[null,8]
[null,8.5]
[null,9]
[null,9.5]
[null,10]
[]
["lst_h",10]
[null,10.5]
[null,11]
[null,11.5]
[null,12]
[null,12.5]
[null,13]
[null,13.5]
[null,14]
[null,14.5]
[null,15]
[null,15.5]
[null,16]
[null,16.5]
[null,17]
[null,17.5]
[null,18]
[null,18.5]
[null,19]
[null,19.5]
[null,20]
[null,20.5]
[null,21]
[null,21.5]
[null,22]
[null,22.5]
[null,23]
[null,23.5]
[null,24]
[null,24.5]
[null,25]
[null,25.5]
[null,26]
[]
[]
["lst_b",4]
[null,4.5]
[null,5]
[null,5.5]
[null,6]
[null,6.5]
[null,7]
[null,7.5]
[null,8]
[null,8.5]
[]
[]
["lst_hf",1.6]
[null,1.8]
[null,2]
[null,2.2000000000000002]
[null,2.4]
[null,2.6]
[null,2.8]
[null,3]
[null,3.2]
[null,3.4]
[null,3.6]
[null,3.8]
[null,4]
[]
["lst_n",1]
[null,2]
[null,3]
[null,4]
[null,5]
[null,6]
[]
[]
["lst_proz","< 20 %"]
[null,"25 %"]
[null,"30 %"]
[null,"35 %"]
[null,"40 %"]
[null,"45 %"]
[null,"> 45 %"]
[]
["lst_proz_corn","< 30 %"]
[null,"30 - 32 %"]
[null,"32 - 36 %"]
[null,"36 - 38 %"]
[null,"> 38 %"]

{"sheet":"Text","index":5,"n_rows":1001,"n_cols":6,"rows_kept":1001,"cut":false,"hidden":true,"merged":[]}
[]
[]
[]
[]
[1]
[]
[]
[]
[null,"Deutsch","Francais"]
[{"$f":"IF(idx_lan = 1,data_d,IF(idx_lan = 2,data_f,0))","v":"Silo-Dimensionen planen"},"Silo-Dimensionen planen"]
["Variante","Variante"]
["Bauprojekt","Bauprojekt"]
["Projekt-Nr.","Projekt-Nr."]
["BeraterIn: Name, Tel.","BeraterIn: Name, Tel."]
["Betriebsbezeichnung","Betriebsbezeichnung"]
["Name, Vorname","Name, Vorname"]
["Strasse, Haus-Nr.","Strasse, Haus-Nr."]
["PLZ, Ort","PLZ, Ort"]
["Kanton","Kanton"]
["Telefon","Telefon"]
["Fax, E-Mail","Fax, E-Mail"]
["Sommer- und Winterperiode in Tagen","Sommer- und Winterperiode in Tagen"]
["Jahr","Jahr"]
["Sommer","Sommer"]
["Winter","Winter"]
["Grundfutterbedarf","Grundfutterbedarf"]
["Silagebedarf","Silagebedarf"]
["im Sommer","im Sommer"]
["im Winter","im Winter"]
["im ganzen Jahr","im ganzen Jahr"]
["Grundfutterver-","Grundfutterver-"]
["Grassilage","Grassilage"]
["Maissilage","Maissilage"]
["Anteil am","Anteil am"]
["Tiere","Tiere"]
["Plätze","Plätze"]
["zehr je Tier in","zehr je Tier in"]
["Grundfutter","Grundfutter"]
["kg TS pro Tag","kg TS pro Tag"]
["in %","in %"]
["Milchkühe ","Milchkühe "]
["in Laktation","in Laktation"]
["galt","galt"]
["Jungvieh","Jungvieh"]
["bis 1 Jahr","bis 1 Jahr"]
["1 bis 2 Jahre","1 bis 2 Jahre"]
["über 2 Jahre","über 2 Jahre"]
["Rindviehmast","Rindviehmast"]
["bis 160 Tage","bis 160 Tage"]
["über 160 Tage","über 160 Tage"]
["Errechneter TS-Verzehr","Errechneter TS-Verzehr"]
["kg TS","kg TS"]
["pro Woche","pro Woche"]
["pro Jahr","pro Jahr"]
["Futterrest","Futterrest"]
["Bitte erfassen Sie die Dauer der Sommerfütterung!","Bitte erfassen Sie die Dauer der Sommerfütterung!"]
["Volumen für Siloreserven","Volumen für Siloreserven"]
[0]
["zur Sicherstellung des Lagerraumbedarfs bei witterungsbedingten Ertragsschwankungen","zur Sicherstellung des Lagerraumbedarfs bei witterungsbedingten Ertragsschwankungen"]
["Konservierungsverlust","Konservierungsverlust"]
["Errechnete Futtermenge","Errechnete Futtermenge"]
[" inkl. Verluste und Siloreserven"," inkl. Verluste und Siloreserven"]
["Trockensubstanzgehalt","Trockensubstanzgehalt"]
["25 - 35 % TS","25 - 35 % TS"]
["30 - 35 % TS","30 - 35 % TS"]
["Silier- und Entnahmebedingungen","Silier- und Entnahmebedingungen"]
["Ermittlung Lagerraumbedarf","Ermittlung Lagerraumbedarf"]
[0]
["Verdichtung","Verdichtung"]
["Jahr","Jahr"]
["Sommer","Sommer"]
["Winter","Winter"]
["Fütterungswochen","Fütterungswochen"]
["Silagebedarf, Ø","Silagebedarf, Ø"]
["in m³ pro Woche","in m³ pro Woche"]
["Lagerraumbedarf","Lagerraumbedarf"]
["in m³ insgesamt","in m³ insgesamt"]
["Hochsilo","Hochsilo"]
["pro Woche in m³","pro Woche in m³"]
["Mindestvorschub","Mindestvorschub"]
["pro Woche in m ","pro Woche in m "]
["Maximal mögliche Anschnittfläche","Maximal mögliche Anschnittfläche"]
["Silodurchmesser, max. ","Silodurchmesser, max. "]
["Theoretische Silohöhe","Theoretische Silohöhe"]
["Planen der Hochsilo-Dimensionen mit konkreten Abmessungen","Planen der Hochsilo-Dimensionen mit konkreten Abmessungen"]
["Silodurchmesser","Silodurchmesser"]
["Anschnittfläche","Anschnittfläche"]
["Vorschub","Vorschub"]
["Erforderliche Höhe insgesamt","Erforderliche Höhe insgesamt"]
["Silohöhe, nutzbar","Silohöhe, nutzbar"]
["max. 26 m","max. 26 m"]
["Anzahl Silos bei gewählter Höhe, Stk.","Anzahl Silos bei gewählter Höhe, Stk."]
["Anzahl Silos","Anzahl Silos"]
["Silohöhe bei gewählter Anzahl Silos in m","Silohöhe bei gewählter Anzahl Silos in m"]
["Fahrsilo","Fahrsilo"]
["pro Woche in m³","pro Woche in m³"]
["pro Woche in m ","pro Woche in m "]
["Maximal mögliche Anschnittfläche","Maximal mögliche Anschnittfläche"]
["Silolänge","Silolänge"]
["Silobreite bei Silohöhe von 2.5 m","Silobreite bei Silohöhe von 2.5 m"]
["Planen der Fahrsilo-Dimensionen mit konkreten Abmessungen","Planen der Fahrsilo-Dimensionen mit konkreten Abmessungen"]
["Silobreite","Silobreite"]
["Silohöhe","Silohöhe"]
["max. 4.0 m","max. 4.0 m"]
["Erforderliche Länge insgesamt","Erforderliche Länge insgesamt"]
["Anzahl Kammern","Anzahl Kammern"]
["Stk.","Stk."]
["Silolänge bei gewählter Anzahl Kammern in m","Silolänge bei gewählter Anzahl Kammern in m"]
["Silolänge","Silolänge"]
["Anzahl Kammern bei gewählter Silolänge, Stk.","Anzahl Kammern bei gewählter Silolänge, Stk."]
["Version 2.01","Version 2.01"]
[0]
[0]
[0]
[0]
[0]
[0]
[0]
[0]
[0]
[0]
[0]
["Ausgehend von den oben genannten Verdichtungswerten ergeben sich untenstehende Werte","Ausgehend von den oben genannten Verdichtungswerten ergeben sich untenstehende Werte"]
["zum Vorschub bei der Entnahme.","zum Vorschub bei der Entnahme."]
["unter Berücksichtigung des Trockensubstanzgehaltes","unter Berücksichtigung des Trockensubstanzgehaltes"]
["m / Woche","m / Woche"]
["Entnahmebedingungen","Entnahmebedingungen"]
["Werte zur Einschätzung der Silierbedingungen","Werte zur Einschätzung der Silierbedingungen"]
["zur Verdichtung bei der Entnahme von Silagen","zur Verdichtung bei der Entnahme von Silagen"]
["zum Vorschub bei der Entnahme von Silagen.","zum Vorschub bei der Entnahme von Silagen."]
["Silierbedingungen","Silierbedingungen"]
["Verdichtung","Verdichtung"]
["kg TS / m³","kg TS / m³"]
["Gras","Gras"]
["Mais","Mais"]
["Vorschub","Vorschub"]
["Winter","Winter"]
["< 0.75","< 0.75",null,null,"> 1.5 m / Wo."]
["0.75 - 1.5","0.75 - 1.5",null,null,"0.75 - 1.5 m / Wo."]
["> 1.5","> 1.5",null,null,"< 0.75 m / Wo."]
["Sommer","Sommer"]
["< 1.5","< 1.5",null,null,"> 2.5 m / Wo."]
["1.5 - 2.5","1.5 - 2.5",null,null,"1.5 - 2.5 m / Wo."]
["> 2.5","> 2.5",null,null,"< 1.5 m / Wo."]
["Die genannten Zahlen sind zur Orientierung gedacht und nicht als starre Grenzen zu betrachten.","Die genannten Zahlen sind zur Orientierung gedacht und nicht als starre Grenzen zu betrachten."]
["Quelle: dlg-Praxishandbuch Futter- und Substratkonzentrierung (2012), S. 96","Quelle: dlg-Praxishandbuch Futter- und Substratkonzentrierung (2012), S. 96"]
[0]
[0]
[0]
[0]
["Probeart","Probeart"]
["Saftaustritt","Saftaustritt"]
["TS-Gehalt","TS-Gehalt"]
["Grassilage","Grassilage"]
["Maissilage","Maissilage"]
["Winden Sie die Probe wie einen Waschlappen aus und fassen Sie dabei nicht nach (Strangprobe).","Winden Sie die Probe wie einen Waschlappen aus und fassen Sie dabei nicht nach (Strangprobe)."]
["Wenn die Silage sehr nass ist, drücken Sie eine Kugel davon in der Hand aus (Kugelprobe).","Wenn die Silage sehr nass ist, drücken Sie eine Kugel davon in der Hand aus (Kugelprobe)."]
["Kugelprobe","Kugelprobe"]
["Strangprobe","Strangprobe"]
["Schätzung des Trockensubstanzgehaltes von Silagen mittels Handprobe","Schätzung des Trockensubstanzgehaltes von Silagen mittels Handprobe"]
["Bei feuchter Silage einen Ball formen und danach die Silage pressen. Ab 30 % TS aus der Silage einen Strang ","Bei feuchter Silage einen Ball formen und danach die Silage pressen. Ab 30 % TS aus der Silage einen Strang "]
["formen und einmal kräftig wringen.","formen und einmal kräftig wringen."]
["Saftfluss bei leichtem Pressen","Saftfluss bei leichtem Pressen"]
["Saftfluss bei starkem Presse","Saftfluss bei starkem Presse"]
["Nach dem Auswinden Saft zwischen den Fingern","Nach dem Auswinden Saft zwischen den Fingern"]
["Nach dem Auswinden kein Saft zwischen den Fingern, aber feuchte Hände","Nach dem Auswinden kein Saft zwischen den Fingern, aber feuchte Hände"]
["Nach dem Auswinden glänzen die Hände noch","Nach dem Auswinden glänzen die Hände noch"]
["Nach dem Auswinden ein leichtes Feuchtegefühl","Nach dem Auswinden ein leichtes Feuchtegefühl"]
["Nach dem Auswinden sind die Hände komplett trocken","Nach dem Auswinden sind die Hände komplett trocken"]
["aus Merkblatt  \"Schlüssel zur Beurteilung der Grassilage-Qualität\" der Arbeitsgemeinschaft zur Förderung des Futterbaues (AGFF-K3b)","aus Merkblatt  \"Schlüssel zur Beurteilung der Grassilage-Qualität\" der Arbeitsgemeinschaft zur Förderung des Futterbaues (AGFF-K3b)"]
["Nehmen Sie von der Maissilage soviel in die Hand, dass die Hand danach nicht vollständig geschlossen ist. Drücken Sie anschliessend ","Nehmen Sie von der Maissilage soviel in die Hand, dass die Hand danach nicht vollständig geschlossen ist. Drücken Sie anschliessend "]
["auf die Maissilage ohne zu Pressen. Beobachten Sie das Auftreten von Flüssigkeit oder Feuchtigkeit zwischen den Fingern.","auf die Maissilage ohne zu Pressen. Beobachten Sie das Auftreten von Flüssigkeit oder Feuchtigkeit zwischen den Fingern."]
["Saft fliesst deutlich sichtbar","Saft fliesst deutlich sichtbar"]
["Es fliesst ein wenig Saft","Es fliesst ein wenig Saft"]
["Es tritt etwas Feuchtigkeit zwischen den Fingern auf, aber es tropft nicht","Es tritt etwas Feuchtigkeit zwischen den Fingern auf, aber es tropft nicht"]
["Es ist noch ein wenig Feuchtigkeit fühlbar","Es ist noch ein wenig Feuchtigkeit fühlbar"]
["Es ist keine Feuchtigkeit mehr fühlbar","Es ist keine Feuchtigkeit mehr fühlbar"]
["aus Merkblatt  \"Schlüssel zur Beurteilung der Maissilage-Qualität\" der Arbeitsgemeinschaft zur Förderung des Futterbaues (AGFF-K3c)","aus Merkblatt  \"Schlüssel zur Beurteilung der Maissilage-Qualität\" der Arbeitsgemeinschaft zur Förderung des Futterbaues (AGFF-K3c)"]
[0]
[0]
["Die Ansicht im Blatt «Berechnung» ist optimiert auf die Anzeige auf einem PC-Bildschirm. ","Die Ansicht im Blatt «Berechnung» ist optimiert auf die Anzeige auf einem PC-Bildschirm. "]
["Sollten Beschriftungen abgeschnitten sein, verändern Sie den Zoom-Faktor mit dem Schieber unten rechts oder","Sollten Beschriftungen abgeschnitten sein, verändern Sie den Zoom-Faktor mit dem Schieber unten rechts oder"]
["über Menü [Ansicht] > Zoom - «benutzerdefiniert», um die beste Einstellung für ihr System zu finden. ","über Menü [Ansicht] > Zoom - «benutzerdefiniert», um die beste Einstellung für ihr System zu finden. "]
["zusätzliche Sicherheitsabfragen zu vermeiden. Kopieren Sie den Link in Ihren Browser, um zum Merkblatt zu gelangen.","zusätzliche Sicherheitsabfragen zu vermeiden. Kopieren Sie den Link in Ihren Browser, um zum Merkblatt zu gelangen."]
["Links sind im Tool als Text eingefügt, um einen reibungslosen Download zu gewährleisten und Einschränkungen durch ","Links sind im Tool als Text eingefügt, um einen reibungslosen Download zu gewährleisten und Einschränkungen durch "]
["https://url.agridea.ch/SiloDim","https://url.agridea.ch/SiloDim"]
["Erläuterungen SiloDim","Erläuterungen SiloDim"]
["Basis dieses Berechnungstools ist das Merkblatt «Dimensionierung von Gärfuttersilos», Version März 2024","Basis dieses Berechnungstools ist das Merkblatt «Dimensionierung von Gärfuttersilos», Version März 2024"]
["Die Zellen im Blatt «Berechnung» sind mit unterschiedlichen Farben hinterlegt:","Die Zellen im Blatt «Berechnung» sind mit unterschiedlichen Farben hinterlegt:"]
["Weiss","Weiss"]
["fix vorgegebene Werte oder Text","fix vorgegebene Werte oder Text"]
["Gelb","Gelb"]
["Zellen, in denen die Eingaben frei wählbar sind oder geändert werden können","Zellen, in denen die Eingaben frei wählbar sind oder geändert werden können"]
["Grün","Grün"]
["beim Auswählen der Zelle erscheint rechts ein Kästchen mit einem Pfeil","beim Auswählen der Zelle erscheint rechts ein Kästchen mit einem Pfeil"]
["nach dem Anklicken des Pfeils kann der Wert aus der Liste ausgewählt werden","nach dem Anklicken des Pfeils kann der Wert aus der Liste ausgewählt werden"]
["Blauer Text:","Blauer Text:"]
["In diesem Bereich können Planungsvarianten zur Dimensionen der Siloanlage gerechnet werden,","In diesem Bereich können Planungsvarianten zur Dimensionen der Siloanlage gerechnet werden,"]
["Ermittlung Futterbedarf","Ermittlung Futterbedarf"]
["Der Futterbedarf soll aufgrund der betriebsspezifischen Fütterungsplanung eingegeben werden.  ","Der Futterbedarf soll aufgrund der betriebsspezifischen Fütterungsplanung eingegeben werden.  "]
["Der Bedarf für Sommer- und Winterfütterung wird separat dargestellt, da sich die Rationen meist erheblich unterscheiden,","Der Bedarf für Sommer- und Winterfütterung wird separat dargestellt, da sich die Rationen meist erheblich unterscheiden,"]
["beispielsweise durch den Weideanteil.","beispielsweise durch den Weideanteil."]
["Die vorgeschlagenen Werte rechts neben der Tabelle «Grundfutterbedarf» stammen aus dem AGRIDEA Betvor bzw. aus den GRUD.","Die vorgeschlagenen Werte rechts neben der Tabelle «Grundfutterbedarf» stammen aus dem AGRIDEA Betvor bzw. aus den GRUD."]
["Diese Werte sind jedoch je nach effektivem Leistungsniveau und den Erfahrungswerten aus dem Fütterungsplan anzupassen.","Diese Werte sind jedoch je nach effektivem Leistungsniveau und den Erfahrungswerten aus dem Fütterungsplan anzupassen."]
["Futterrest","Futterrest"]
["Für den %-Anteil des Futterrestes soll der individuelle Erfahrungswert des Betriebes erfasst werden.","Für den %-Anteil des Futterrestes soll der individuelle Erfahrungswert des Betriebes erfasst werden."]
["Volumen für Siloreserven","Volumen für Siloreserven"]
["Dieser Wert wird gemäss der auf dem Betrieb regelmässig zu erwartenden Ertragsschwankungen festgelegt.","Dieser Wert wird gemäss der auf dem Betrieb regelmässig zu erwartenden Ertragsschwankungen festgelegt."]
["mit konkreten Eingaben.","mit konkreten Eingaben."]
["Ermittlung Lagerraumbedarf","Ermittlung Lagerraumbedarf"]
["In den grün hinterlegten Zellen können die Angaben aus dem Tabellenblatt «Verdichtung und Vorschub» gewählt werden.","In den grün hinterlegten Zellen können die Angaben aus dem Tabellenblatt «Verdichtung und Vorschub» gewählt werden."]
["Die daraus resultierende Verdichtung passt sich automatisch an.","Die daraus resultierende Verdichtung passt sich automatisch an."]
["Aus den nun eingegebenen Werten wird automatisch der Silagebedarf pro Woche ermittelt. Das Ergebnis wird","Aus den nun eingegebenen Werten wird automatisch der Silagebedarf pro Woche ermittelt. Das Ergebnis wird"]
["in die Bereiche «Hochsilo» und «Fahrsilo» übertragen, jeweils in die Zeile Silagebedarf, Ø.",{"$f":"\"in die Bereiche «Hochsilo» und «Fahrsilo» übertragen, jeweils in die Zeile \"& Text!$A$74 &\".\"","v":"in die Bereiche «Hochsilo» und «Fahrsilo» übertragen, jeweils in die Zeile Silagebedarf, Ø."}]
["Daraus wird dann die maximal mögliche Anschnittfläche je für Mais- / Grassilage ermittelt, für Hoch- und Fahrsilo.","Daraus wird dann die maximal mögliche Anschnittfläche je für Mais- / Grassilage ermittelt, für Hoch- und Fahrsilo.",null,null,null,"Ursprungstext - kann gelöscht werden, wenn Alternative iO"]
["Der maximale Wert links, unter «Jahr», ergibt sich aus dem jeweils tieferen Wert: Sommer- oder Winterfütterung.","Der maximale Wert links, unter «Jahr», ergibt sich aus dem jeweils tieferen Wert: Sommer- oder Winterfütterung.",null,null,null,"Der maximale Wert in den Spalten E und H unter \"Jahr\" ergibt sich aus dem jeweils tieferen Wert, der für die Sommer- resp. Winterfütterung ermittelt wurde."]
["Diese Werte werden für den Mndestvorschub verwendet.","Diese Werte werden für den Mndestvorschub verwendet."]
["Planen der Hochsilo-Dimensionen","Planen der Hochsilo-Dimensionen"]
["Ausgehend vom jeweiligen Ergebnis zum maximalen Silodurchmesser für die Lagerung der Mais- und Grassilage und den Vorgaben ","Ausgehend vom jeweiligen Ergebnis zum maximalen Silodurchmesser für die Lagerung der Mais- und Grassilage und den Vorgaben "]
["zum Vorschub können in diesem Abschnitt Varianten für die konkrete Dimensionierung der Siloanlage ermittelt werden.","zum Vorschub können in diesem Abschnitt Varianten für die konkrete Dimensionierung der Siloanlage ermittelt werden."]
["Dazu können Silodurchmesser, -höhe und die Anzahl der Silos variiert werden.","Dazu können Silodurchmesser, -höhe und die Anzahl der Silos variiert werden."]
["Wird der minimal erforderliche Vorschub pro Woche unterschritten, erscheint in der jeweiligen Zelle der Wert in roter Farbe.","Wird der minimal erforderliche Vorschub pro Woche unterschritten, erscheint in der jeweiligen Zelle der Wert in roter Farbe."]
["Die konkreten Abmessungen für die Ausführung werden in der Folge mit der Herstellerfirma geplant.","Die konkreten Abmessungen für die Ausführung werden in der Folge mit der Herstellerfirma geplant."]
[0]
["Planen der Fahrsilo-Dimensionen","Planen der Fahrsilo-Dimensionen"]
["In diesem Abschnitt besteht wieder die Möglichkeit verschiedene Varianten zur Dimensionierung zu rechnen.","In diesem Abschnitt besteht wieder die Möglichkeit verschiedene Varianten zur Dimensionierung zu rechnen."]
["Dazu ist es möglich, Breite des Fahrsilos und die Höhe des Futterstocks zu variieren.","Dazu ist es möglich, Breite des Fahrsilos und die Höhe des Futterstocks zu variieren."]
["Bei der Höhe gilt es, die vorgesehene Entnahmetechnik einzubeziehen.","Bei der Höhe gilt es, die vorgesehene Entnahmetechnik einzubeziehen."]
["Auch hier erscheint ein Warnhinweis, sobald der minimal erforderliche Vorschub unterschritten wird.","Auch hier erscheint ein Warnhinweis, sobald der minimal erforderliche Vorschub unterschritten wird."]
["Zur Festlegung der Länge der Kammern muss die Mindestlänge eingehalten werden,","Zur Festlegung der Länge der Kammern muss die Mindestlänge eingehalten werden,"]
["welche für das Einbringen und Verdichten der Silage nötig ist. Siehe Merkblatt Tabelle 4","welche für das Einbringen und Verdichten der Silage nötig ist. Siehe Merkblatt Tabelle 4"]
[0]
["Rumiplan ","Rumiplan "]
["Link in Textform: Kopieren Sie den Link in Ihren Browser, um zum Rumiplan zu gelangen.","Link in Textform: Kopieren Sie den Link in Ihren Browser, um zum Rumiplan zu gelangen."]
["https://www.barto.ch/de/bausteine/uebersicht/rumiplan-370","https://www.barto.ch/de/bausteine/uebersicht/rumiplan-370"]
[0]
[0]
[0]
[0]
[0]
[0]
[0]
[0]
[0]
[0]
[0]
[0]
[0]
[0]
[0]
[0]
[0]
[0]
[0]
[0]
[0]
[0]
[0]
[0]
[0]
[0]
[0]
[0]
[0]
[0]
[0]
[0]
[0]
[0]
[0]
[0]
[0]
[0]
[0]
[0]
[0]
[0]
[0]
[0]
[0]
[0]
[0]
[0]
[0]
[0]
[0]
[0]
[0]
[0]
[0]
[0]
[0]
[0]
[0]
[0]
[0]
[0]
[0]
[0]
[0]
[0]
[0]
[0]
[0]
[0]
[0]
[0]
[0]
[0]
[0]
[0]
[0]
[0]
[0]
[0]
[0]
[0]
[0]
[0]
[0]
[0]
[0]
[0]
[0]
[0]
[0]
[0]
[0]
[0]
[0]
[0]
[0]
[0]
[0]
[0]
[0]
[0]
[0]
[0]
[0]
[0]
[0]
[0]
[0]
[0]
[0]
[0]
[0]
[0]
[0]
[0]
[0]
[0]
[0]
[0]
[0]
[0]
[0]
[0]
[0]
[0]
[0]
[0]
[0]
[0]
[0]
[0]
[0]
[0]
[0]
[0]
[0]
[0]
[0]
[0]
[0]
[0]
[0]
[0]
[0]
[0]
[0]
[0]
[0]
[0]
[0]
[0]
[0]
[0]
[0]
[0]
[0]
[0]
[0]
[0]
[0]
[0]
[0]
[0]
[0]
[0]
[0]
[0]
[0]
[0]
[0]
[0]
[0]
[0]
[0]
[0]
[0]
[0]
[0]
[0]
[0]
[0]
[0]
[0]
[0]
[0]
[0]
[0]
[0]
[0]
[0]
[0]
[0]
[0]
[0]
[0]
[0]
[0]
[0]
[0]
[0]
[0]
[0]
[0]
[0]
[0]
[0]
[0]
[0]
[0]
[0]
[0]
[0]
[0]
[0]
[0]
[0]
[0]
[0]
[0]
[0]
[0]
[0]
[0]
[0]
[0]
[0]
[0]
[0]
[0]
[0]
[0]
[0]
[0]
[0]
[0]
[0]
[0]
[0]
[0]
[0]
[0]
[0]
[0]
[0]
[0]
[0]
[0]
[0]
[0]
[0]
[0]
[0]
[0]
[0]
[0]
[0]
[0]
[0]
[0]
[0]
[0]
[0]
[0]
[0]
[0]
[0]
[0]
[0]
[0]
[0]
[0]
[0]
[0]
[0]
[0]
[0]
[0]
[0]
[0]
[0]
[0]
[0]
[0]
[0]
[0]
[0]
[0]
[0]
[0]
[0]
[0]
[0]
[0]
[0]
[0]
[0]
[0]
[0]
[0]
[0]
[0]
[0]
[0]
[0]
[0]
[0]
[0]
[0]
[0]
[0]
[0]
[0]
[0]
[0]
[0]
[0]
[0]
[0]
[0]
[0]
[0]
[0]
[0]
[0]
[0]
[0]
[0]
[0]
[0]
[0]
[0]
[0]
[0]
[0]
[0]
[0]
[0]
[0]
[0]
[0]
[0]
[0]
[0]
[0]
[0]
[0]
[0]
[0]
[0]
[0]
[0]
[0]
[0]
[0]
[0]
[0]
[0]
[0]
[0]
[0]
[0]
[0]
[0]
[0]
[0]
[0]
[0]
[0]
[0]
[0]
[0]
[0]
[0]
[0]
[0]
[0]
[0]
[0]
[0]
[0]
[0]
[0]
[0]
[0]
[0]
[0]
[0]
[0]
[0]
[0]
[0]
[0]
[0]
[0]
[0]
[0]
[0]
[0]
[0]
[0]
[0]
[0]
[0]
[0]
[0]
[0]
[0]
[0]
[0]
[0]
[0]
[0]
[0]
[0]
[0]
[0]
[0]
[0]
[0]
[0]
[0]
[0]
[0]
[0]
[0]
[0]
[0]
[0]
[0]
[0]
[0]
[0]
[0]
[0]
[0]
[0]
[0]
[0]
[0]
[0]
[0]
[0]
[0]
[0]
[0]
[0]
[0]
[0]
[0]
[0]
[0]
[0]
[0]
[0]
[0]
[0]
[0]
[0]
[0]
[0]
[0]
[0]
[0]
[0]
[0]
[0]
[0]
[0]
[0]
[0]
[0]
[0]
[0]
[0]
[0]
[0]
[0]
[0]
[0]
[0]
[0]
[0]
[0]
[0]
[0]
[0]
[0]
[0]
[0]
[0]
[0]
[0]
[0]
[0]
[0]
[0]
[0]
[0]
[0]
[0]
[0]
[0]
[0]
[0]
[0]
[0]
[0]
[0]
[0]
[0]
[0]
[0]
[0]
[0]
[0]
[0]
[0]
[0]
[0]
[0]
[0]
[0]
[0]
[0]
[0]
[0]
[0]
[0]
[0]
[0]
[0]
[0]
[0]
[0]
[0]
[0]
[0]
[0]
[0]
[0]
[0]
[0]
[0]
[0]
[0]
[0]
[0]
[0]
[0]
[0]
[0]
[0]
[0]
[0]
[0]
[0]
[0]
[0]
[0]
[0]
[0]
[0]
[0]
[0]
[0]
[0]
[0]
[0]
[0]
[0]
[0]
[0]
[0]
[0]
[0]
[0]
[0]
[0]
[0]
[0]
[0]
[0]
[0]
[0]
[0]
[0]
[0]
[0]
[0]
[0]
[0]
[0]
[0]
[0]
[0]
[0]
[0]
[0]
[0]
[0]
[0]
[0]
[0]
[0]
[0]
[0]
[0]
[0]
[0]
[0]
[0]
[0]
[0]
[0]
[0]
[0]
[0]
[0]
[0]
[0]
[0]
[0]
[0]
[0]
[0]
[0]
[0]
[0]
[0]
[0]
[0]
[0]
[0]
[0]
[0]
[0]
[0]
[0]
[0]
[0]
[0]
[0]
[0]
[0]
[0]
[0]
[0]
[0]
[0]
[0]
[0]
[0]
[0]
[0]
[0]
[0]
[0]
[0]
[0]
[0]
[0]
[0]
[0]
[0]
[0]
[0]
[0]
[0]
[0]
[0]
[0]
[0]
[0]
[0]
[0]
[0]
[0]
[0]
[0]
[0]
[0]
[0]
[0]
[0]
[0]
[0]
[0]
[0]
[0]
[0]
[0]
[0]
[0]
[0]
[0]
[0]
[0]
[0]
[0]
[0]
[0]
[0]
[0]
[0]
[0]
[0]
[0]
[0]
[0]
[0]
[0]
[0]
[0]
[0]
[0]
[0]
[0]
[0]
[0]
[0]
[0]
[0]
[0]
[0]
[0]
[0]
[0]
[0]
[0]
[0]
[0]
[0]
[0]
[0]
[0]
[0]
[0]
[0]
[0]
[0]
[0]
[0]
[0]
[0]
[0]
[0]
[0]
[0]
[0]
[0]
[0]
[0]
[0]
[0]
[0]
[0]
[0]
[0]
[0]
[0]
[0]
[0]
[0]
[0]
["STOP","STOP","STOP"]